bitfinex/quotes_ETHUSD_20240711
["timestamp","ask_amount","ask_price","bid_price","bid_amount"]
[1720661070009,0.04978112,3102.7,3101.2,2.3441]
[1720661070010,3.407,3102.5,3100.8,2.3541]
[1720661070180,2.8984,3102.6,3100.8,2.3541]
[1720661070181,3.0,3102.4,3100.8,2.3541]
[1720661070381,3.05034721,3102.4,3100.8,2.3541]
[1720661070594,3.0,3102.3,3100.8,2.3541]
[1720661070798,0.60017019,3102.2,3100.8,2.3541]
[1720661070989,0.60017019,3102.2,3100.3,2.3162]
[1720661070990,2.3926,3102.1,3100.3,2.3162]
[1720661071308,0.05007099,3102.0,3100.4,0.43342]
[1720661074479,0.05007099,3102.0,3100.6,2.018]
[1720661076295,0.05007099,3102.0,3100.4,3.43342]
[1720661076522,1.11740912,3101.9,3100.4,3.43342]
[1720661076789,0.04990207,3101.8,3100.4,3.43342]
[1720661076992,2.3926,3102.1,3100.5,0.574962]
[1720661077289,0.04987894,3101.7,3100.5,0.574962]
[1720661077517,0.55,3102.0,3100.5,0.574962]
[1720661077721,0.04985581,3101.6,3100.5,0.574962]
[1720661077920,0.55,3102.0,3100.6,0.4008382]
[1720661078111,1.11741017,3101.9,3100.6,0.4008382]
[1720661078422,0.0499252,3101.9,3100.6,0.4008382]
[1720661078889,1.11743943,3101.8,3100.6,0.4008382]
[1720661079226,0.04990207,3101.8,3100.6,0.4008382]
[1720661082648,0.04990207,3101.8,3100.3,2.3162]
[1720661082649,2.4297,3101.6,3100.3,2.3162]
[1720661082940,1.11753822,3101.5,3100.3,2.3162]
[1720661083111,1.11753822,3101.4,3100.3,2.3162]
[1720661083544,0.04873469,3101.3,3100.3,2.3162]
[1720661083917,1.11763278,3101.2,3099.7,2.449]
[1720661084244,1.16630515,3101.1,3099.8,0.4467]
[1720661084429,0.04867237,3101.1,3099.8,0.4467]
[1720661084639,3.0,3101.5,3099.8,0.4467]
[1720661084811,0.0486617,3101.0,3099.8,0.4467]
[1720661085002,3.0,3101.5,3099.8,0.4467]
[1720661085340,3.0,3101.5,3100.0,4.3383]
[1720661085341,1.16673143,3101.4,3100.0,4.3383]
[1720661085543,0.04908265,3101.4,3100.1,0.0645017]
[1720661085750,0.04908265,3101.4,3100.1,2.3203]
[1720661086107,3.0,3101.8,3100.1,2.3203]
[1720661086313,0.04853783,3101.3,3100.1,2.3203]
[1720661086508,3.0,3101.8,3100.2,0.43383]
[1720661086734,0.04852716,3101.2,3100.2,0.43383]
[1720661087059,0.04848798,3101.1,3100.2,0.43383]
[1720661087255,3.0,3101.8,3100.2,0.43383]
[1720661087490,0.04848442,3101.0,3100.2,0.43383]
[1720661087749,3.0,3101.8,3100.3,0.275413]
[1720661087945,1.1174298,3101.7,3100.3,0.275413]
[1720661088241,0.04864642,3101.7,3100.4,2.3377]
[1720661088645,0.04864642,3101.7,3100.4,4.3557]
[1720661088854,0.04864642,3101.7,3100.5,0.06449509]
[1720661089159,0.04864642,3101.7,3100.6,0.44201951]
[1720661089356,0.04864642,3101.7,3100.7,2.3412]
[1720661089652,0.04891341,3101.6,3100.7,2.3412]
[1720661089860,8.61349943,3102.3,3100.7,2.3412]
[1720661090008,0.04889028,3101.5,3100.7,2.3412]
[1720661090210,8.61349943,3102.3,3100.7,2.3412]
[1720661090448,0.04886715,3101.4,3100.8,0.23412]
[1720661090628,3.0,3102.2,3100.8,0.23412]
[1720661090942,0.04890114,3101.3,3100.8,0.23412]
[1720661091148,3.0,3102.2,3100.8,0.23412]
[1720661091355,1.11732444,3102.1,3100.8,0.23412]
[1720661091645,1.11732444,3102.1,3100.9,0.257532]
[1720661091646,1.11732444,3102.0,3100.9,0.257532]
[1720661091837,0.04908819,3102.0,3100.9,0.257532]
[1720661092847,1.11736058,3101.9,3100.9,0.257532]
[1720661093013,1.11736973,3101.8,3100.9,0.257532]
[1720661093213,0.04903737,3101.8,3100.9,0.257532]
[1720661093407,3.0,3102.2,3100.9,0.257532]
[1720661093615,0.04901424,3101.7,3100.9,0.257532]
[1720661093815,3.0,3102.2,3100.9,0.257532]
[1720661094134,0.04899111,3101.6,3100.7,2.3412]
[1720661094325,6.407,3102.2,3100.7,2.3412]
[1720661094521,0.04896341,3101.5,3100.7,2.3412]
[1720661094852,0.04877404,3101.4,3100.7,2.3412]
[1720661095079,3.55,3102.1,3100.7,2.3412]
[1720661095257,0.0487509,3101.3,3100.7,2.3412]
[1720661095569,3.55,3102.1,3100.8,0.23412]
[1720661095767,1.11741949,3102.0,3100.7,2.3412]
[1720661095974,1.11741949,3101.9,3100.7,2.3412]
[1720661096284,1.16627698,3101.8,3100.7,2.3412]
[1720661096471,1.11741949,3101.7,3100.7,2.3412]
[1720661096674,1.16623781,3101.7,3100.7,2.3412]
[1720661096978,3.44541949,3101.6,3100.7,2.3412]
[1720661097273,1.16617551,3101.5,3100.7,2.3412]
[1720661097426,1.11741949,3101.4,3100.7,2.3412]
[1720661097633,1.16615237,3101.4,3100.7,2.3412]
[1720661097940,1.11741949,3101.3,3100.7,2.3412]
[1720661098344,0.04868659,3101.2,3100.7,2.3412]
[1720661098942,2.328,3101.6,3100.7,2.3412]
[1720661099270,1.11752743,3101.5,3100.7,2.3412]
[1720661099448,1.16655469,3101.4,3100.7,2.3412]
[1720661099634,1.11752284,3101.3,3100.7,2.3412]
[1720661099946,1.16653156,3101.3,3100.7,2.3412]
[1720661100146,1.11752284,3101.2,3100.7,2.3412]
[1720661100568,0.04863138,3101.1,3100.7,2.3412]
[1720661100751,0.04863138,3101.1,3100.8,0.23412]
[1720661100939,3.0,3101.8,3100.8,0.23412]
[1720661101240,1.16618381,3101.7,3100.7,2.3412]
[1720661101432,1.11743868,3101.6,3100.7,2.3412]
[1720661101636,0.04896799,3101.5,3100.7,2.3412]
[1720661101878,1.11736033,3101.5,3100.7,2.3412]
[1720661102047,0.04862318,3101.4,3100.7,2.3412]
[1720661102367,5.83959906,3101.9,3100.8,0.23412]
[1720661102587,0.048876,3101.3,3100.8,0.23412]
[1720661102753,5.83959906,3101.9,3100.8,0.23412]
[1720661102958,0.04713471,3101.2,3100.8,0.23412]
[1720661103166,5.83959906,3101.9,3100.8,0.23412]
[1720661103352,5.83959906,3101.9,3100.9,0.257532]
[1720661103353,1.11734712,3101.8,3100.9,0.257532]
[1720661103677,1.11734712,3101.7,3100.9,0.257532]
[1720661103985,1.1646227,3101.6,3100.9,0.257532]
[1720661104191,1.11734712,3101.5,3100.9,0.257532]
[1720661104693,0.04723617,3101.4,3100.9,0.257532]
[1720661105049,5.83959906,3101.9,3100.9,0.257532]
[1720661105353,0.04721532,3101.3,3100.9,0.257532]
[1720661105557,5.83959906,3101.9,3100.9,0.257532]
[1720661105852,1.11738521,3101.8,3100.9,0.257532]
[1720661106069,1.11738521,3101.7,3100.9,0.257532]
[1720661106383,0.04729843,3101.6,3100.9,0.257532]
[1720661106940,5.83959906,3101.9,3100.9,0.257532]
[1720661107181,0.0470438,3101.5,3100.9,0.257532]
[1720661107365,5.83959906,3101.9,3100.9,0.257532]
[1720661107571,0.04701834,3101.4,3100.9,0.257532]
[1720661107781,5.83959906,3101.9,3100.9,0.257532]
[1720661108082,1.11736922,3101.8,3100.9,0.257532]
[1720661108283,1.11736922,3101.7,3100.9,0.257532]
[1720661108584,1.11735163,3101.6,3101.0,2.306]
[1720661108788,0.04732841,3101.7,3101.1,0.2563532]
[1720661108970,0.04704148,3101.5,3101.1,0.2563532]
[1720661109282,0.04701834,3101.4,3101.0,2.306]
[1720661109450,1.69080165,3102.0,3101.0,2.306]
[1720661109650,1.16447749,3101.9,3101.0,2.306]
[1720661109900,1.11739155,3101.8,3101.0,2.306]
[1720661110060,0.04703967,3101.7,3101.0,2.306]
[1720661110248,1.11739155,3101.6,3101.0,2.5366]
[1720661110450,0.04726488,3101.5,3101.0,2.5366]
[1720661110855,3.0,3102.2,3101.0,2.5366]
[1720661111091,3.95388455,3101.9,3100.6,2.4624]
[1720661111341,1.69148455,3101.7,3100.6,2.4624]
[1720661111592,1.69148455,3101.7,3100.2,0.43383]
[1720661111593,1.69148455,3101.4,3100.2,2.89623]
[1720661111801,1.11762669,3101.3,3100.2,2.89623]
[1720661112008,1.11762669,3101.2,3100.2,2.89623]
[1720661112305,1.11762669,3101.1,3100.4,2.2889]
[1720661112463,0.04689047,3101.3,3100.5,2.2889]
[1720661112650,7.87034994,3102.0,3100.5,2.35339803]
[1720661112651,1.6922924,3101.9,3100.5,2.35339803]
[1720661112853,0.04728072,3101.2,3100.6,3.41170081]
[1720661113081,7.53189146,3102.0,3100.6,2.2889]
[1720661113082,5.83959906,3102.0,3100.6,2.2889]
[1720661113396,5.83959906,3102.0,3100.8,2.2889]
[1720661113397,1.1643591,3101.9,3100.8,2.2889]
[1720661113599,1.11731432,3101.8,3100.8,2.2889]
[1720661113754,1.11731432,3101.7,3100.8,2.2889]
[1720661113963,5.83959906,3102.0,3100.8,2.2889]
[1720661114210,1.11728476,3101.9,3100.8,2.2889]
[1720661114390,1.11728476,3101.8,3100.9,0.281779]
[1720661114759,0.0469985,3101.7,3100.8,2.2889]
[1720661115008,1.11728476,3101.6,3100.8,2.2889]
[1720661115315,1.16438189,3101.5,3100.8,2.2889]
[1720661115520,0.04701446,3101.5,3100.8,2.2889]
[1720661115803,1.69349233,3101.9,3100.8,2.2889]
[1720661116013,0.04699132,3101.4,3100.9,0.22889]
[1720661116306,0.04696817,3101.3,3100.9,0.22889]
[1720661116597,1.69349233,3101.8,3100.9,0.22889]
[1720661116804,1.11736037,3101.7,3100.9,0.22889]
[1720661117104,1.11736037,3101.6,3100.9,0.22889]
[1720661117311,1.11736037,3101.5,3100.9,0.22889]
[1720661117467,1.11736037,3101.4,3100.9,0.22889]
[1720661117805,1.16435169,3101.4,3100.9,0.22889]
[1720661117971,0.04699132,3101.4,3100.9,0.22889]
[1720661118378,1.69349233,3101.7,3100.9,0.22889]
[1720661118690,1.1174102,3101.6,3100.9,0.22889]
[1720661118891,1.1174102,3101.5,3100.9,0.22889]
[1720661119094,1.1174102,3101.4,3100.9,0.22889]
[1720661119311,1.16473573,3101.4,3100.9,0.22889]
[1720661119504,0.04732553,3101.4,3100.9,0.22889]
[1720661119684,1.6936853,3101.7,3100.9,0.22889]
[1720661119892,1.6936853,3101.7,3100.8,2.2889]
[1720661119893,0.04730239,3101.3,3100.8,2.2889]
[1720661120078,1.11742289,3101.2,3100.8,2.2889]
[1720661120277,0.04727926,3101.2,3100.8,2.2889]
[1720661120497,1.6936853,3101.6,3100.8,2.2889]
[1720661120709,0.04725612,3101.1,3100.8,2.2889]
[1720661120877,1.6936853,3101.6,3100.8,2.2889]
[1720661121213,0.04723298,3101.0,3100.4,3.0]
[1720661121426,0.04723298,3101.0,3100.3,0.289623]
[1720661121427,1.11746918,3100.9,3100.5,2.7512623]
[1720661121633,1.11746918,3101.2,3100.5,2.4223]
[1720661121928,0.04730348,3100.9,3100.5,2.4223]
[1720661122088,2.81152057,3101.1,3100.5,2.4223]
[1720661122290,0.04683416,3100.8,3100.5,2.4223]
[1720661122623,1.11765243,3100.7,3099.9,2.3033]
[1720661122935,1.69389468,3101.0,3100.0,0.97033]
[1720661123113,1.11768703,3100.9,3100.0,0.97033]
[1720661123420,1.11768703,3100.8,3099.9,2.3033]
[1720661123721,1.11768703,3100.7,3099.9,2.3033]
[1720661123883,0.046811,3100.7,3099.9,2.3033]
[1720661124308,1.11773407,3100.6,3099.9,2.3033]
[1720661124621,0.04631452,3100.6,3100.0,0.23033]
[1720661124989,1.69389468,3101.0,3100.0,0.23033]
[1720661125287,1.16403301,3100.9,3100.0,0.23033]
[1720661125488,0.04638398,3100.9,3100.0,0.23033]
[1720661125725,1.6929265,3101.2,3100.1,0.253363]
[1720661125880,0.04672576,3100.8,3100.1,0.253363]
[1720661126085,1.6929265,3101.2,3100.1,0.253363]
[1720661126324,0.04633767,3100.7,3099.9,2.3033]
[1720661126551,1.6929265,3101.2,3099.9,2.3033]
[1720661126755,1.11764952,3101.1,3099.9,2.3033]
[1720661126921,1.11764952,3101.0,3099.9,2.3033]
[1720661127261,1.11764952,3100.9,3099.9,2.3033]
[1720661127432,0.04638398,3100.9,3100.0,0.23033]
[1720661127634,1.69256789,3101.3,3100.0,0.23033]
[1720661127828,0.04636082,3100.8,3100.0,0.23033]
[1720661128139,1.69256789,3101.2,3100.0,0.23033]
[1720661128313,0.04633767,3100.7,3100.0,0.23033]
[1720661128515,1.69256789,3101.2,3100.1,0.253363]
[1720661128759,0.04667947,3100.6,3100.1,0.253363]
[1720661128931,1.69256789,3101.3,3100.1,0.253363]
[1720661129126,0.04636149,3100.5,3100.1,0.253363]
[1720661129365,1.69256789,3101.2,3100.1,0.253363]
[1720661129545,0.04597337,3100.4,3100.1,0.253363]
[1720661129718,1.69256789,3101.3,3100.1,0.253363]
[1720661129920,0.0463152,3100.3,3100.1,0.253363]
[1720661130220,1.69256789,3101.2,3100.1,0.253363]
[1720661130420,1.16379317,3101.1,3100.1,0.253363]
[1720661130762,0.04614207,3101.1,3100.2,2.2944]
[1720661130941,0.04614207,3101.1,3100.3,0.2547763]
[1720661131123,1.69256789,3101.5,3100.3,0.2547763]
[1720661131323,0.04635736,3101.0,3100.3,0.2547763]
[1720661131527,1.69256789,3101.5,3100.3,0.2547763]
[1720661131726,0.04633422,3100.9,3100.3,0.2547763]
[1720661131949,1.11753451,3101.4,3100.4,0.25491763]
[1720661132152,0.04588751,3100.8,3100.4,0.25491763]
[1720661132322,1.69229397,3101.4,3100.4,0.25491763]
[1720661132529,0.04586436,3100.7,3100.4,0.25491763]
[1720661132845,1.69229397,3101.4,3100.4,0.25491763]
[1720661133055,0.0458412,3100.6,3100.4,0.25491763]
[1720661133360,1.69229397,3101.5,3100.4,0.25491763]
[1720661133566,2.80984246,3101.4,3100.4,0.25491763]
[1720661133720,1.11754849,3101.3,3100.5,2.4352]
[1720661133923,0.04634906,3101.3,3100.6,0.26901176]
[1720661134140,1.69217193,3101.6,3100.6,0.26901176]
[1720661134339,0.04598011,3101.2,3100.6,0.26901176]
[1720661134642,0.04630279,3101.1,3100.7,0.27042118]
[1720661134841,2.02999446,3101.5,3100.7,0.27042118]
[1720661135151,0.04593381,3101.0,3100.5,2.4352]
[1720661135337,1.11752064,3101.4,3100.5,2.4352]
[1720661135541,0.04591066,3100.9,3100.5,2.4352]
[1720661135735,2.02996929,3101.5,3100.5,2.4352]
[1720661135959,0.04588751,3100.8,3100.5,2.4352]
[1720661136166,2.02996929,3101.5,3100.6,0.24352]
[1720661136329,0.04621023,3100.7,3100.5,2.4352]
[1720661136538,2.02996929,3101.5,3100.5,2.4352]
[1720661136742,0.04618709,3100.6,3100.5,2.4352]
[1720661137036,2.02996929,3101.5,3100.5,2.4352]
[1720661137384,1.16390854,3101.4,3100.5,2.4352]
[1720661137671,1.11753634,3101.3,3100.5,2.4352]
[1720661137883,1.11753634,3101.2,3100.5,2.4352]
[1720661138080,0.04598011,3101.2,3100.5,2.4352]
[1720661138381,2.02996929,3101.5,3100.5,2.4352]
[1720661138565,0.04595696,3101.1,3100.5,2.67872]
[1720661138760,2.02996929,3101.5,3100.5,2.67872]
[1720661138968,0.04593381,3101.0,3100.5,2.67872]
[1720661139173,1.11751006,3101.4,3100.5,2.67872]
[1720661139371,0.04625652,3100.9,3100.6,0.267872]
[1720661139683,0.04623337,3100.8,3100.6,0.267872]
[1720661139879,0.33782253,3101.5,3100.6,0.267872]
[1720661140201,0.04621023,3100.7,3100.6,0.267872]
[1720661140385,0.33782253,3101.5,3100.6,0.267872]
[1720661140555,3.45531026,3101.4,3100.5,2.4352]
[1720661140887,3.45531026,3101.4,3099.8,2.475]
[1720661140888,2.80994471,3101.3,3099.8,2.475]
[1720661141055,2.80994471,3101.3,3099.8,5.475]
[1720661141056,0.04633036,3101.3,3099.8,5.475]
[1720661141248,2.81029527,3101.2,3099.8,2.475]
[1720661141458,1.11763093,3101.1,3099.9,0.2475]
[1720661141660,1.73862179,3101.2,3099.9,3.2475]
[1720661141661,1.11763093,3101.0,3099.9,3.2475]
[1720661142002,1.16356523,3101.1,3099.9,3.2475]
[1720661142215,0.045888,3100.9,3100.0,2.53950971]
[1720661142381,0.04591115,3101.0,3100.2,2.475]
[1720661142580,1.69249381,3101.4,3100.2,2.475]
[1720661142775,0.04618178,3100.9,3100.2,2.475]
[1720661142988,2.03031634,3101.5,3100.2,2.475]
[1720661143195,0.04617108,3100.8,3100.4,2.475]
[1720661143498,0.04614793,3100.7,3100.4,2.475]
[1720661143675,2.03031634,3101.5,3100.4,2.475]
[1720661143875,0.04612479,3100.6,3100.4,2.475]
[1720661144191,2.03031634,3101.5,3100.4,2.475]
[1720661144506,1.16381432,3101.4,3100.4,2.475]
[1720661144797,1.11751685,3101.3,3100.5,0.27803701]
[1720661145213,0.0462512,3101.2,3100.6,2.3056]
[1720661145767,0.33782253,3101.5,3100.6,2.3056]
[1720661146185,1.16346813,3101.4,3100.6,2.3056]
[1720661146387,1.11743165,3101.3,3100.6,2.3056]
[1720661146608,1.11743165,3101.3,3100.2,0.06449986]
[1720661146609,0.04603648,3101.4,3100.8,2.2621]
[1720661146785,0.04599019,3101.2,3100.8,2.2621]
[1720661147119,0.04598308,3101.1,3100.8,2.2621]
[1720661147414,0.33782253,3101.5,3100.8,2.2621]
[1720661147609,0.04595993,3101.0,3100.8,2.2621]
[1720661147771,0.33782253,3101.5,3100.9,0.25204637]
[1720661147970,0.04602819,3100.9,3100.8,2.2621]
[1720661148167,0.33782253,3101.5,3100.8,2.2621]
[1720661148411,0.04602819,3100.9,3100.8,2.2621]
[1720661148598,0.33782253,3101.5,3100.8,2.2621]
[1720661148907,1.11742238,3101.4,3100.8,2.2621]
[1720661149083,0.33782253,3101.5,3100.8,2.48831]
[1720661149284,1.16356472,3101.4,3100.8,2.48831]
[1720661149489,0.04614392,3101.4,3100.8,2.48831]
[1720661149716,0.33782253,3101.5,3100.8,2.48831]
[1720661154239,1.692137,3102.2,3100.9,2.282]
[1720661154404,1.11722841,3102.1,3101.3,2.2613]
[1720661154600,0.04508692,3102.1,3101.6,2.018]
[1720661154856,1.692137,3103.0,3101.8,2.2613]
[1720661155147,1.16062355,3102.9,3101.8,5.2613]
[1720661155308,0.04364944,3102.9,3101.8,5.2613]
[1720661155507,1.11698997,3102.8,3101.8,5.2613]
[1720661155721,0.04360322,3102.7,3101.8,5.2613]
[1720661155919,2.3088,3103.1,3101.9,0.57536978]
[1720661156119,0.04367255,3103.0,3102.0,2.32226772]
[1720661156310,1.16063758,3103.0,3102.0,2.32226772]
[1720661156505,0.04367255,3103.0,3102.0,2.32226772]
[1720661157620,0.04367255,3103.0,3102.4,2.018]
[1720661157823,0.04367255,3103.0,3102.6,2.2578]
[1720661158018,0.33761739,3103.8,3102.8,2.2578]
[1720661158307,0.03957881,3103.7,3102.9,0.06444518]
[1720661158538,2.4526,3104.4,3103.0,2.367]
[1720661158736,0.03966239,3104.3,3103.0,2.367]
[1720661159057,0.03966239,3104.3,3103.0,2.81194441]
[1720661159222,1.11659101,3104.2,3103.0,2.367]
[1720661159423,0.03966239,3104.3,3103.0,2.367]
[1720661159618,0.03960379,3104.1,3103.0,2.367]
[1720661159819,0.03962688,3104.2,3103.0,2.367]
[1720661160028,0.03958069,3104.0,3103.0,2.367]
[1720661160221,5.4526,3104.4,3102.6,5.4951]
[1720661160222,0.03960379,3104.1,3102.6,5.4951]
[1720661160428,0.0395576,3103.9,3102.6,5.4951]
[1720661160624,0.0395576,3103.9,3102.6,2.4951]
[1720661160625,2.4413,3103.9,3102.6,2.4951]
[1720661160823,1.7067823,3103.8,3102.6,2.4951]
[1720661161025,3.59004591,3103.8,3102.6,2.4951]
[1720661161348,1.11683334,3103.7,3102.1,2.2975]
[1720661161510,0.03999971,3103.6,3102.2,0.43155]
[1720661162217,0.03999971,3103.6,3102.3,2.3043]
[1720661162549,2.2963,3104.4,3102.2,0.43155]
[1720661162761,2.2963,3104.4,3102.5,2.3043]
[1720661162762,4.1567679,3104.3,3102.5,2.3043]
[1720661162951,3.04011161,3104.3,3102.6,2.4323]
[1720661163113,0.04011161,3104.3,3102.8,2.4323]
[1720661163547,0.04011161,3104.3,3102.8,2.49674815]
[1720661164467,0.04011161,3104.3,3102.9,2.3394]
[1720661164639,0.04011161,3104.3,3103.0,0.06444169]
[1720661165166,5.2963,3104.4,3102.9,2.3394]
[1720661165545,0.04002306,3104.3,3102.9,2.3394]
[1720661166452,0.04002306,3104.3,3103.0,0.06444525]
[1720661166671,5.2963,3104.4,3103.0,0.06444525]
[1720661167054,0.04002306,3104.3,3103.0,0.06444525]
[1720661167388,0.04002306,3104.3,3103.1,2.4846]
[1720661167547,0.04002306,3104.3,3103.2,0.0644373]
[1720661167754,2.3547,3104.7,3103.3,0.25490373]
[1720661167970,0.040392,3104.6,3103.2,0.0644373]
[1720661168865,0.040392,3104.6,3103.1,2.4846]
[1720661170449,0.040392,3104.6,3103.2,0.0644372]
[1720661170886,0.040392,3104.6,3103.2,0.06443719]
[1720661171255,0.040392,3104.6,3103.1,2.4846]
[1720661171490,0.040392,3104.6,3103.2,0.54846]
[1720661171671,0.040392,3104.6,3103.2,0.6128972]
[1720661171850,0.040392,3104.6,3103.3,0.06443717]
[1720661172052,0.040392,3104.6,3103.2,0.61289706]
[1720661172256,0.040392,3104.6,3103.6,2.018]
[1720661172483,0.040392,3104.6,3103.8,2.3499]
[1720661172690,2.3088,3105.2,3103.8,5.41432402]
[1720661174199,0.03961241,3105.1,3103.8,5.41432402]
[1720661174371,0.03961241,3105.1,3103.8,5.3499]
[1720661175851,0.03961241,3105.1,3103.9,0.06442003]
[1720661176055,0.03961241,3105.1,3104.0,0.541432]
[1720661179629,0.03961241,3105.1,3103.8,5.3499]
[1720661179934,2.2715,3105.0,3103.8,3.0]
[1720661180136,2.2715,3105.0,3103.7,0.2018]
[1720661180431,0.0395255,3104.9,3103.7,0.2018]
[1720661180596,0.0395255,3104.9,3103.8,0.32018]
[1720661180795,2.2715,3104.8,3103.2,5.16532641]
[1720661181012,2.2715,3104.8,3103.3,3.0]
[1720661181522,3.0,3105.4,3103.2,5.00786]
[1720661181523,2.2715,3104.6,3103.2,5.00786]
[1720661181694,2.2715,3104.6,3103.2,0.54846]
[1720661182100,2.2715,3104.6,3103.3,2.5058351]
[1720661182296,0.03933783,3104.5,3103.4,0.50722951]
[1720661183887,2.2715,3104.6,3103.4,0.50722951]
[1720661185091,0.0395065,3104.5,3103.4,0.50722951]
[1720661185318,0.0395065,3104.5,3103.4,3.72948951]
[1720661185502,2.2715,3104.6,3103.5,3.55]
[1720661185705,2.2715,3104.6,3103.6,0.72794895]
[1720661186156,2.2715,3104.6,3103.6,3.72794895]
[1720661186292,2.2715,3104.6,3103.6,0.72794895]
[1720661189553,2.2715,3104.6,3103.4,0.50722951]
[1720661189718,1.15591382,3104.5,3103.4,0.50722951]
[1720661189921,0.03943474,3104.5,3103.1,3.0]
[1720661190255,0.03943474,3104.5,3103.0,2.3035]
[1720661190623,2.2715,3104.6,3103.0,2.3035]
[1720661190864,0.039125,3104.4,3103.1,0.55]
[1720661191035,0.03913667,3104.5,3103.1,3.55]
[1720661191235,0.03909048,3104.3,3103.2,0.58535]
[1720661191447,2.4823,3104.3,3103.2,0.58535]
[1720661191661,0.03932938,3104.2,3103.2,0.58535]
[1720661191968,2.4823,3104.3,3103.2,0.58535]
[1720661192124,0.0393359,3104.2,3103.1,0.55]
[1720661192327,2.4823,3104.3,3103.0,0.55]
[1720661192543,1.15546922,3104.2,3103.0,0.55]
[1720661192875,2.4823,3104.3,3103.0,0.55]
[1720661193038,1.11648418,3104.2,3103.0,0.55]
[1720661193234,0.0393039,3104.2,3103.1,0.37128488]
[1720661193453,2.4823,3104.3,3103.1,0.37128488]
[1720661193654,2.4692,3104.1,3102.4,2.018]
[1720661193953,2.3773,3103.9,3102.4,2.018]
[1720661194156,1.15543342,3103.8,3102.4,2.018]
[1720661194334,1.11662048,3103.7,3102.4,2.018]
[1720661194529,0.03878273,3103.6,3102.5,0.49051797]
[1720661194986,0.03878273,3103.6,3102.6,0.06444715]
[1720661195268,0.03878273,3103.6,3102.8,5.24088]
[1720661195431,0.03878273,3103.6,3103.0,3.22268]
[1720661195632,0.33757796,3103.7,3103.1,3.06443288]
[1720661195830,0.33757796,3103.7,3103.2,1.17871129]
[1720661196062,0.33757796,3103.7,3103.2,0.62871129]
[1720661196265,0.33757796,3103.7,3103.0,0.06444262]
[1720661196640,0.03876873,3103.6,3103.0,0.06444262]
[1720661196835,0.33757796,3103.7,3103.0,0.06444262]
[1720661197251,0.33757796,3103.7,3102.8,5.018]
[1720661197838,2.4644,3103.6,3102.8,5.018]
[1720661198044,2.4644,3103.6,3102.9,0.53438167]
[1720661198366,0.03731305,3103.5,3103.0,0.06444555]
[1720661198565,2.4644,3103.6,3102.5,3.77808352]
[1720661198751,2.4644,3103.6,3102.6,1.12204884]
[1720661198955,2.4644,3103.6,3102.5,3.77808352]
[1720661199268,2.4644,3103.6,3102.6,1.12205373]
[1720661199465,2.4644,3103.6,3102.7,0.49001373]
[1720661199847,2.4644,3103.6,3102.8,0.55]
[1720661200938,2.4644,3103.6,3102.7,0.49001373]
[1720661202577,2.4644,3103.6,3102.7,0.55445844]
[1720661202895,2.4644,3103.6,3102.8,0.06444478]
[1720661203058,2.4644,3103.6,3102.7,0.49001373]
[1720661203453,2.4644,3103.6,3102.8,1.67205995]
[1720661203648,2.4644,3103.6,3102.9,0.21620737]
[1720661207497,0.03697237,3103.5,3102.9,0.21620737]
[1720661207696,0.03697237,3103.5,3102.7,0.49001373]
[1720661208003,2.4644,3103.6,3102.7,0.49001373]
[1720661208382,1.11674066,3103.5,3102.7,0.49001373]
[1720661208722,0.03685319,3103.4,3102.7,0.49001373]
[1720661209010,2.4644,3103.6,3102.7,0.49001373]
[1720661209330,1.15360322,3103.5,3102.7,0.49001373]
[1720661209473,0.03689231,3103.5,3102.7,0.49001373]
[1720661209835,2.4644,3103.6,3102.7,0.49001373]
[1720661210107,1.11673225,3103.5,3102.7,0.49001373]
[1720661210407,0.03691723,3103.5,3102.7,0.49001373]
[1720661213004,0.03691013,3103.4,3102.7,0.49001373]
[1720661213312,2.4644,3103.6,3102.7,0.49001373]
[1720661213611,1.11673144,3103.5,3102.7,0.49001373]
[1720661213813,0.03691013,3103.4,3102.7,0.49001373]
[1720661213987,2.4644,3103.6,3102.7,0.49001373]
[1720661214184,1.15401243,3103.5,3102.7,0.49001373]
[1720661214390,0.03728042,3103.5,3102.7,0.49001373]
[1720661214923,2.4644,3103.6,3102.7,0.49001373]
[1720661217738,3.38149037,3103.5,3102.7,0.49001373]
[1720661217894,2.2648,3103.5,3102.5,3.49051797]
[1720661218094,0.03685145,3103.4,3102.5,3.49051797]
[1720661218344,2.2648,3103.5,3102.5,3.49051797]
[1720661218998,1.11670627,3103.4,3102.5,3.49051797]
[1720661219199,2.2648,3103.5,3102.6,0.5508518]
[1720661219420,2.2934,3103.3,3102.3,0.15706303]
[1720661219719,7.78424132,3104.4,3102.1,3.0]
[1720661219720,1.15359072,3103.2,3102.1,3.0]
[1720661219917,3.5817855,3103.1,3102.0,5.34381669]
[1720661220154,2.465,3103.1,3102.0,5.34381669]
[1720661220459,2.465,3103.1,3102.1,0.70271745]
[1720661220755,2.465,3103.1,3102.1,3.70271745]
[1720661222863,2.02739435,3104.0,3102.1,0.70271745]
[1720661222864,2.3102,3102.9,3102.1,0.70271745]
[1720661223084,2.3102,3102.9,3102.0,0.16288829]
[1720661223085,1.11685938,3102.8,3102.0,0.16288829]
[1720661223341,0.03656864,3102.8,3101.6,5.56794669]
[1720661223569,2.3102,3102.9,3101.7,1.6723735]
[1720661223840,1.11691845,3102.8,3101.8,0.72403202]
[1720661224142,0.03654552,3102.7,3101.8,0.72403202]
[1720661224353,2.3102,3102.9,3101.8,0.72403202]
[1720661224748,2.64783965,3102.9,3101.8,0.72403202]
[1720661225124,0.03656864,3102.8,3101.8,0.72403202]
[1720661225437,0.33763965,3102.9,3101.8,0.72403202]
[1720661225438,2.4071,3102.7,3101.9,0.4274032]
[1720661225826,0.03704015,3102.6,3101.9,0.4274032]
[1720661226025,2.3952,3102.5,3101.2,0.67409815]
[1720661226231,2.3952,3102.4,3101.1,1.68382881]
[1720661226431,2.3952,3102.2,3101.0,0.15811165]
[1720661226724,2.3952,3102.2,3100.9,3.7019433]
[1720661226725,0.03632639,3102.1,3100.9,1.6839433]
[1720661227055,2.018,3102.8,3100.6,7.46136723]
[1720661227056,2.3179,3102.0,3100.8,1.6839433]
[1720661227264,2.3179,3102.0,3100.8,0.23580415]
[1720661227427,0.03600102,3101.9,3100.5,5.24328]